[Event "Titled Tuesday Blitz July 20 2021"]
[White "Petriashvili, Nikoloz"]
[Black "Ambartsumova, Karina"]
[WhiteFideId "13611216"]
[BlackFideId "4166299"]
[WhiteElo "2430"]
[BlackElo "2262"]
[Result "1-0"]
[Round "04"]
[TimeControl "180+1"]
[Date "2021.07.21"]
[WhiteClock "0:00:26"]
[BlackClock "0:00:18"]

1. e4 {[%clk 0:03:00]}  c5 {[%clk 0:02:59]} 2. Nf3 {[%clk 0:03:01]}  e6 {[%clk 0:02:59]} 3. d4 {[%clk 0:03:00]}  cxd4 {[%clk 0:03:00]} 4. Nxd4 {[%clk 0:03:00]}  a6 {[%clk 0:03:00]} 5. c4 {[%clk 0:02:59]}  Nf6 {[%clk 0:02:59]} 6. Nc3 {[%clk 0:02:59]}  Bb4 {[%clk 0:02:57]} 7. Qd3 {[%clk 0:02:57]}  Nc6 {[%clk 0:02:56]} 8. Be2 {[%clk 0:02:56]}  Qc7 {[%clk 0:02:43]} 9. O-O {[%clk 0:02:21]}  O-O {[%clk 0:02:40]} 10. Nxc6 {[%clk 0:02:07]}  dxc6 {[%clk 0:02:36]} 11. Bg5 {[%clk 0:02:08]}  Be7 {[%clk 0:02:31]} 12. Rad1 {[%clk 0:02:04]}  e5 {[%clk 0:02:26]} 13. Qg3 {[%clk 0:02:03]}  Be6 {[%clk 0:02:10]} 14. Bh6 {[%clk 0:01:59]}  Ne8 {[%clk 0:02:06]} 15. Bg4 {[%clk 0:01:58]}  Bxg4 {[%clk 0:01:59]} 16. Qxg4 {[%clk 0:01:59]}  Rd8 {[%clk 0:01:58]} 17. Rxd8 {[%clk 0:01:59]}  Bxd8 {[%clk 0:01:46]} 18. Rd1 {[%clk 0:01:58]}  Kh8 {[%clk 0:01:41]} 19. Be3 {[%clk 0:01:34]}  Nf6 {[%clk 0:01:38]} 20. Qe2 {[%clk 0:00:55]}  Be7 {[%clk 0:01:38]} 21. a3 {[%clk 0:00:52]}  Rd8 {[%clk 0:01:30]} 22. f3 {[%clk 0:00:52]}  Kg8 {[%clk 0:01:26]} 23. Kf2 {[%clk 0:00:50]}  h6 {[%clk 0:01:26]} 24. b4 {[%clk 0:00:48]}  Rxd1 {[%clk 0:01:26]} 25. Qxd1 {[%clk 0:00:48]}  Qd7 {[%clk 0:01:26]} 26. Qxd7 {[%clk 0:00:45]}  Nxd7 {[%clk 0:01:27]} 27. Ke2 {[%clk 0:00:46]}  a5 {[%clk 0:01:23]} 28. c5 {[%clk 0:00:42]}  axb4 {[%clk 0:01:22]} 29. axb4 {[%clk 0:00:43]}  f6 {[%clk 0:01:22]} 30. Kd3 {[%clk 0:00:44]}  Kf7 {[%clk 0:01:22]} 31. Kc4 {[%clk 0:00:44]}  Ke6 {[%clk 0:01:23]} 32. b5 {[%clk 0:00:42]}  Nb8 {[%clk 0:01:18]} 33. b6 {[%clk 0:00:40]}  Nd7 {[%clk 0:01:16]} 34. Nb1 {[%clk 0:00:39]}  h5 {[%clk 0:01:16]} 35. Nd2 {[%clk 0:00:40]}  g6 {[%clk 0:01:15]} 36. Nb3 {[%clk 0:00:40]}  f5 {[%clk 0:01:00]} 37. Na5 {[%clk 0:00:39]}  fxe4 {[%clk 0:00:55]} 38. fxe4 {[%clk 0:00:40]}  Nf6 {[%clk 0:00:56]} 39. Kd3 {[%clk 0:00:34]}  Nd7 {[%clk 0:00:53]} 40. Nxb7 {[%clk 0:00:34]}  Kf7 {[%clk 0:00:48]} 41. h3 {[%clk 0:00:32]}  Ke6 {[%clk 0:00:47]} 42. Kc4 {[%clk 0:00:32]}  Nf6 {[%clk 0:00:46]} 43. Na5 {[%clk 0:00:28]}  Kd7 {[%clk 0:00:47]} 44. Kd3 {[%clk 0:00:28]}  Bd8 {[%clk 0:00:44]} 45. Nc4 {[%clk 0:00:26]}  Ke6 {[%clk 0:00:42]} 46. Nd6 {[%clk 0:00:24]}  Nd7 {[%clk 0:00:37]} 47. Nc8 {[%clk 0:00:22]}  Nb8 {[%clk 0:00:29]} 48. Na7 {[%clk 0:00:19]}  Kd7 {[%clk 0:00:27]} 49. Kc4 {[%clk 0:00:19]}  Be7 {[%clk 0:00:26]} 50. g4 {[%clk 0:00:20]}  hxg4 {[%clk 0:00:20]} 51. hxg4 {[%clk 0:00:20]}  Bf6 {[%clk 0:00:19]} 52. Bd2 {[%clk 0:00:20]}  Bg7 {[%clk 0:00:19]} 53. Bc3 {[%clk 0:00:20]}  Bf6 {[%clk 0:00:19]} 54. Kb4 {[%clk 0:00:20]}  Na6+ {[%clk 0:00:18]} 55. Kc4 {[%clk 0:00:20]}  Nb8 {[%clk 0:00:18]} 56. Ba5 {[%clk 0:00:20]}  Bd8 {[%clk 0:00:14]} 57. Kb4 {[%clk 0:00:19]}  Na6+ {[%clk 0:00:14]} 58. Kc4 {[%clk 0:00:20]}  Nb8 {[%clk 0:00:15]} 59. Be1 {[%clk 0:00:20]}  Bf6 {[%clk 0:00:15]} 60. Bg3 {[%clk 0:00:21]}  Bg7 {[%clk 0:00:15]} 61. Bf2 {[%clk 0:00:20]}  Bf6 {[%clk 0:00:16]} 62. Kb4 {[%clk 0:00:21]}  Na6+ {[%clk 0:00:15]} 63. Ka5 {[%clk 0:00:21]}  Nb8 {[%clk 0:00:16]} 64. Be3 {[%clk 0:00:22]}  Bd8 {[%clk 0:00:15]} 65. Ka4 {[%clk 0:00:21]}  Be7 {[%clk 0:00:16]} 66. Kb4 {[%clk 0:00:21]}  Bd8 {[%clk 0:00:15]} 67. Kc4 {[%clk 0:00:21]}  Bf6 {[%clk 0:00:15]} 68. Bc1 {[%clk 0:00:22]}  Bg7 {[%clk 0:00:15]} 69. Ba3 {[%clk 0:00:22]}  Bf6 {[%clk 0:00:15]} 70. Bb4 {[%clk 0:00:22]}  Bg7 {[%clk 0:00:15]} 71. Ba5 {[%clk 0:00:23]}  Bf6 {[%clk 0:00:15]} 72. b7 {[%clk 0:00:23]}  Bd8 {[%clk 0:00:12]} 73. Bb6 {[%clk 0:00:23]}  Bf6 {[%clk 0:00:09]} 74. Nc8 {[%clk 0:00:24]}  Bg7 {[%clk 0:00:08]} 75. Nd6 {[%clk 0:00:24]}  Bf8 {[%clk 0:00:08]} 76. Ba7 {[%clk 0:00:24]}  Kc7 {[%clk 0:00:08]} 77. Bxb8+ {[%clk 0:00:22]}  Kxb8 {[%clk 0:00:09]} 78. Kb4 {[%clk 0:00:18]}  Be7 {[%clk 0:00:07]} 79. Ka5 {[%clk 0:00:18]}  Bxd6 {[%clk 0:00:08]} 80. cxd6 {[%clk 0:00:18]}  Kxb7 {[%clk 0:00:09]} 81. g5 {[%clk 0:00:17]}  c5 {[%clk 0:00:07]} 82. Kb5 {[%clk 0:00:18]}  c4 {[%clk 0:00:08]} 83. Kxc4 {[%clk 0:00:18]}  Kc6 {[%clk 0:00:09]} 84. d7 {[%clk 0:00:19]}  Kxd7 {[%clk 0:00:10]} 85. Kd5 {[%clk 0:00:19]}  Ke8 {[%clk 0:00:09]} 86. Kxe5 {[%clk 0:00:20]}  Ke7 {[%clk 0:00:10]} 87. Kd5 {[%clk 0:00:21]}  Kd7 {[%clk 0:00:10]} 88. Kc5 {[%clk 0:00:19]}  Ke6 {[%clk 0:00:10]} 89. Kd4 {[%clk 0:00:20]}  Kd6 {[%clk 0:00:11]} 90. e5+ {[%clk 0:00:20]}  Ke6 {[%clk 0:00:12]} 91. Ke4 {[%clk 0:00:21]}  Ke7 {[%clk 0:00:13]} 92. Kd5 {[%clk 0:00:22]}  Kd7 {[%clk 0:00:13]} 93. e6+ {[%clk 0:00:23]}  Ke7 {[%clk 0:00:14]} 94. Ke5 {[%clk 0:00:23]}  Ke8 {[%clk 0:00:14]} 95. Kf6 {[%clk 0:00:24]}  Kf8 {[%clk 0:00:15]} 96. Kxg6 {[%clk 0:00:24]}  Ke7 {[%clk 0:00:16]} 97. Kf5 {[%clk 0:00:25]}  Kf8 {[%clk 0:00:16]} 98. g6 {[%clk 0:00:25]}  Ke7 {[%clk 0:00:17]} 99. g7 {[%clk 0:00:26]}  Ke8 {[%clk 0:00:18]} 100. g8=Q+ {[%clk 0:00:26]}  Ke7 {[%clk 0:00:18]} 1-0


[Site "https://www.chess.com"]

[Event "Titled Tuesday Blitz July 20 2021"]
[White "Pourkashiyan, Atousa"]
[Black "Kamsky, Gata"]
[WhiteFideId "12502014"]
[BlackFideId "2000024"]
[WhiteElo "2285"]
[BlackElo "2644"]
[Result "0-1"]
[Round "04"]
[TimeControl "180+1"]
[Date "2021.07.21"]
[WhiteClock "0:00:06"]
[BlackClock "0:00:33"]

1. e4 {[%clk 0:02:32]}  e5 {[%clk 0:02:54]} 2. Nf3 {[%clk 0:02:28]}  Nc6 {[%clk 0:02:51]} 3. Bb5 {[%clk 0:02:28]}  a6 {[%clk 0:02:48]} 4. Ba4 {[%clk 0:02:28]}  Nf6 {[%clk 0:02:44]} 5. O-O {[%clk 0:02:28]}  Be7 {[%clk 0:02:43]} 6. Re1 {[%clk 0:02:29]}  b5 {[%clk 0:02:41]} 7. Bb3 {[%clk 0:02:29]}  O-O {[%clk 0:02:42]} 8. a4 {[%clk 0:02:28]}  Bb7 {[%clk 0:02:40]} 9. d3 {[%clk 0:02:28]}  d5 {[%clk 0:02:37]} 10. exd5 {[%clk 0:02:27]}  Nxd5 {[%clk 0:02:36]} 11. Nc3 {[%clk 0:02:27]}  Nxc3 {[%clk 0:02:19]} 12. bxc3 {[%clk 0:02:28]}  Bd6 {[%clk 0:02:06]} 13. Bg5 {[%clk 0:02:27]}  Qd7 {[%clk 0:02:03]} 14. Bh4 {[%clk 0:02:26]}  Kh8 {[%clk 0:02:02]} 15. Ng5 {[%clk 0:02:08]}  Be7 {[%clk 0:01:58]} 16. Qh5 {[%clk 0:01:58]}  Bxg5 {[%clk 0:01:57]} 17. Bxg5 {[%clk 0:01:43]}  f6 {[%clk 0:01:57]} 18. Be3 {[%clk 0:01:41]}  Na5 {[%clk 0:01:51]} 19. Ba2 {[%clk 0:01:16]}  Bd5 {[%clk 0:01:50]} 20. d4 {[%clk 0:00:53]}  Bxa2 {[%clk 0:01:49]} 21. Rxa2 {[%clk 0:00:54]}  Nc4 {[%clk 0:01:46]} 22. dxe5 {[%clk 0:00:52]}  Nxe5 {[%clk 0:01:45]} 23. h3 {[%clk 0:00:48]}  Nc4 {[%clk 0:01:40]} 24. Bd4 {[%clk 0:00:45]}  Rae8 {[%clk 0:01:38]} 25. Rxe8 {[%clk 0:00:35]}  Rxe8 {[%clk 0:01:38]} 26. axb5 {[%clk 0:00:35]}  axb5 {[%clk 0:01:37]} 27. Ra1 {[%clk 0:00:30]}  Kg8 {[%clk 0:01:27]} 28. Rb1 {[%clk 0:00:29]}  c6 {[%clk 0:01:27]} 29. Ra1 {[%clk 0:00:28]}  Qf7 {[%clk 0:01:25]} 30. Qf3 {[%clk 0:00:25]}  Qe6 {[%clk 0:01:16]} 31. g3 {[%clk 0:00:24]}  Qe4 {[%clk 0:01:10]} 32. Qxe4 {[%clk 0:00:24]}  Rxe4 {[%clk 0:01:10]} 33. Ra8+ {[%clk 0:00:24]}  Kf7 {[%clk 0:01:10]} 34. Rc8 {[%clk 0:00:25]}  Re6 {[%clk 0:01:06]} 35. Rc7+ {[%clk 0:00:25]}  Kg6 {[%clk 0:01:05]} 36. f4 {[%clk 0:00:26]}  h5 {[%clk 0:00:54]} 37. g4 {[%clk 0:00:26]}  hxg4 {[%clk 0:00:54]} 38. hxg4 {[%clk 0:00:27]}  Re4 {[%clk 0:00:54]} 39. g5 {[%clk 0:00:18]}  Rxf4 {[%clk 0:00:52]} 40. gxf6 {[%clk 0:00:19]}  gxf6 {[%clk 0:00:52]} 41. Rxc6 {[%clk 0:00:19]}  Rf5 {[%clk 0:00:52]} 42. Kg2 {[%clk 0:00:18]}  Kg5 {[%clk 0:00:49]} 43. Kg3 {[%clk 0:00:18]}  Kg6 {[%clk 0:00:49]} 44. Rc8 {[%clk 0:00:19]}  Rd5 {[%clk 0:00:47]} 45. Rg8+ {[%clk 0:00:18]}  Kf7 {[%clk 0:00:47]} 46. Ra8 {[%clk 0:00:19]}  Nd6 {[%clk 0:00:46]} 47. Ra6 {[%clk 0:00:18]}  Nf5+ {[%clk 0:00:46]} 48. Kf3 {[%clk 0:00:16]}  Nxd4+ {[%clk 0:00:46]} 49. cxd4 {[%clk 0:00:17]}  Rxd4 {[%clk 0:00:46]} 50. Rb6 {[%clk 0:00:18]}  b4 {[%clk 0:00:45]} 51. Ke3 {[%clk 0:00:18]}  Rh4 {[%clk 0:00:45]} 52. Kd3 {[%clk 0:00:17]}  Kg6 {[%clk 0:00:45]} 53. Rb5 {[%clk 0:00:17]}  f5 {[%clk 0:00:45]} 54. Rb8 {[%clk 0:00:17]}  Kg5 {[%clk 0:00:45]} 55. Rb7 {[%clk 0:00:17]}  Re4 {[%clk 0:00:43]} 56. Rg7+ {[%clk 0:00:16]}  Kf4 {[%clk 0:00:43]} 57. Rg1 {[%clk 0:00:16]}  Re3+ {[%clk 0:00:41]} 58. Kd4 {[%clk 0:00:15]}  Rc3 {[%clk 0:00:41]} 59. Rf1+ {[%clk 0:00:13]}  Kg5 {[%clk 0:00:41]} 60. Rg1+ {[%clk 0:00:14]}  Kh4 {[%clk 0:00:41]} 61. Rf1 {[%clk 0:00:14]}  Kg4 {[%clk 0:00:40]} 62. Rg1+ {[%clk 0:00:14]}  Rg3 {[%clk 0:00:39]} 63. Rb1 {[%clk 0:00:14]}  Rf3 {[%clk 0:00:37]} 64. Ke5 {[%clk 0:00:12]}  Re3+ {[%clk 0:00:34]} 65. Kf6 {[%clk 0:00:12]}  f4 {[%clk 0:00:34]} 66. Rxb4 {[%clk 0:00:12]}  Kg3 {[%clk 0:00:33]} 67. c4 {[%clk 0:00:12]}  f3 {[%clk 0:00:33]} 68. c5 {[%clk 0:00:09]}  Rc3 {[%clk 0:00:33]} 69. Rb5 {[%clk 0:00:06]}  f2 {[%clk 0:00:33]} 0-1


[Site "https://www.chess.com"]

[Event "Titled Tuesday Blitz July 20 2021"]
[White "Rahman, Ziaur"]
[Black "Luo, Terry"]
[WhiteFideId "10200037"]
[BlackFideId "30931045"]
[WhiteElo "2460"]
[BlackElo "2024"]
[Result "1-0"]
[Round "04"]
[TimeControl "180+1"]
[Date "2021.07.21"]
[WhiteClock "0:00:42"]
[BlackClock "0:00:58"]

1. d4 {[%clk 0:03:00]}  Nf6 {[%clk 0:02:59]} 2. Bg5 {[%clk 0:03:00]}  d5 {[%clk 0:02:59]} 3. Nd2 {[%clk 0:02:58]}  c6 {[%clk 0:02:50]} 4. e3 {[%clk 0:02:51]}  e6 {[%clk 0:02:47]} 5. Bd3 {[%clk 0:02:47]}  Be7 {[%clk 0:02:46]} 6. f4 {[%clk 0:02:42]}  Nbd7 {[%clk 0:02:37]} 7. Ngf3 {[%clk 0:02:35]}  b6 {[%clk 0:02:24]} 8. O-O {[%clk 0:02:29]}  a5 {[%clk 0:02:24]} 9. Qe2 {[%clk 0:02:23]}  h6 {[%clk 0:02:19]} 10. Bxf6 {[%clk 0:02:19]}  Nxf6 {[%clk 0:02:16]} 11. Ne5 {[%clk 0:02:19]}  Qc7 {[%clk 0:02:15]} 12. Nxc6 {[%clk 0:02:14]}  O-O {[%clk 0:02:13]} 13. Ne5 {[%clk 0:02:07]}  Bb7 {[%clk 0:02:06]} 14. Qf3 {[%clk 0:02:03]}  Ne4 {[%clk 0:02:06]} 15. Nxe4 {[%clk 0:02:02]}  dxe4 {[%clk 0:02:06]} 16. Bxe4 {[%clk 0:02:02]}  Bxe4 {[%clk 0:02:06]} 17. Qxe4 {[%clk 0:02:02]}  Bf6 {[%clk 0:02:03]} 18. c3 {[%clk 0:02:00]}  Bxe5 {[%clk 0:01:57]} 19. fxe5 {[%clk 0:02:00]}  b5 {[%clk 0:01:56]} 20. a3 {[%clk 0:01:58]}  Rab8 {[%clk 0:01:54]} 21. Rac1 {[%clk 0:01:57]}  Qc4 {[%clk 0:01:50]} 22. Rc2 {[%clk 0:01:50]}  Qb3 {[%clk 0:01:43]} 23. h4 {[%clk 0:01:36]}  b4 {[%clk 0:01:41]} 24. axb4 {[%clk 0:01:36]}  axb4 {[%clk 0:01:42]} 25. c4 {[%clk 0:01:34]}  Ra8 {[%clk 0:01:42]} 26. c5 {[%clk 0:01:25]}  Ra2 {[%clk 0:01:40]} 27. Rff2 {[%clk 0:01:23]}  Ra1+ {[%clk 0:01:36]} 28. Kh2 {[%clk 0:01:22]}  Re1 {[%clk 0:01:37]} 29. Rfe2 {[%clk 0:01:16]}  Rf1 {[%clk 0:01:34]} 30. c6 {[%clk 0:01:11]}  Qa4 {[%clk 0:01:30]} 31. c7 {[%clk 0:01:09]}  Qa6 {[%clk 0:01:24]} 32. Qc6 {[%clk 0:01:03]}  Qd3 {[%clk 0:01:16]} 33. c8=Q {[%clk 0:01:00]}  Rxc8 {[%clk 0:01:16]} 34. Qxc8+ {[%clk 0:00:59]}  Kh7 {[%clk 0:01:17]} 35. Qb7 {[%clk 0:00:50]}  Qg6 {[%clk 0:01:09]} 36. Rf2 {[%clk 0:00:44]}  Re1 {[%clk 0:00:58]} 37. Qf3 {[%clk 0:00:42]} 1-0


[Site "https://www.chess.com"]

[Event "Titled Tuesday Blitz July 20 2021"]
[White "Rottenwohrer Suarez, Juan"]
[Black "Pinheiro, Iung Alicio de O."]
[WhiteFideId "32068182"]
[BlackFideId "2104350"]
[WhiteElo "2158"]
[BlackElo "2597"]
[Result "0-1"]
[Round "04"]
[TimeControl "180+1"]
[Date "2021.07.21"]
[WhiteClock "0:00:02"]
[BlackClock "0:00:31"]

1. d4 {[%clk 0:03:00]}  Nf6 {[%clk 0:02:57]} 2. c4 {[%clk 0:03:01]}  g6 {[%clk 0:02:57]} 3. Nf3 {[%clk 0:03:00]}  Bg7 {[%clk 0:02:57]} 4. g3 {[%clk 0:03:01]}  O-O {[%clk 0:02:57]} 5. Bg2 {[%clk 0:03:01]}  d6 {[%clk 0:02:58]} 6. O-O {[%clk 0:03:01]}  Bf5 {[%clk 0:02:58]} 7. Ne1 {[%clk 0:03:00]}  Be4 {[%clk 0:02:56]} 8. f3 {[%clk 0:02:57]}  Bxb1 {[%clk 0:02:52]} 9. Rxb1 {[%clk 0:02:57]}  c5 {[%clk 0:02:51]} 10. dxc5 {[%clk 0:02:50]}  dxc5 {[%clk 0:02:50]} 11. Qxd8 {[%clk 0:02:48]}  Rxd8 {[%clk 0:02:51]} 12. Nd3 {[%clk 0:02:48]}  Na6 {[%clk 0:02:45]} 13. f4 {[%clk 0:02:35]}  Rd7 {[%clk 0:02:44]} 14. Ne5 {[%clk 0:02:26]}  Rc7 {[%clk 0:02:43]} 15. Rd1 {[%clk 0:02:27]}  h5 {[%clk 0:02:27]} 16. Be3 {[%clk 0:02:22]}  Rb8 {[%clk 0:02:21]} 17. a3 {[%clk 0:02:18]}  Ng4 {[%clk 0:02:21]} 18. Nxg4 {[%clk 0:02:16]}  hxg4 {[%clk 0:02:21]} 19. h3 {[%clk 0:01:58]}  gxh3 {[%clk 0:02:18]} 20. Bxh3 {[%clk 0:01:59]}  e6 {[%clk 0:02:16]} 21. Bg2 {[%clk 0:01:57]}  b6 {[%clk 0:02:12]} 22. b3 {[%clk 0:01:54]}  Rbc8 {[%clk 0:02:09]} 23. Rd6 {[%clk 0:01:53]}  Nb8 {[%clk 0:02:09]} 24. Rbd1 {[%clk 0:01:50]}  Bf8 {[%clk 0:02:02]} 25. Rd8 {[%clk 0:01:48]}  Kg7 {[%clk 0:01:53]} 26. g4 {[%clk 0:01:40]}  Be7 {[%clk 0:01:51]} 27. R8d3 {[%clk 0:01:27]}  Bf6 {[%clk 0:01:34]} 28. f5 {[%clk 0:01:14]}  exf5 {[%clk 0:01:20]} 29. gxf5 {[%clk 0:01:04]}  g5 {[%clk 0:01:19]} 30. Kf2 {[%clk 0:00:48]}  Nc6 {[%clk 0:01:18]} 31. Bxc6 {[%clk 0:00:47]}  Rxc6 {[%clk 0:01:18]} 32. Rd7 {[%clk 0:00:46]}  R6c7 {[%clk 0:01:17]} 33. Kg3 {[%clk 0:00:43]}  Rxd7 {[%clk 0:01:10]} 34. Rxd7 {[%clk 0:00:43]}  Re8 {[%clk 0:01:11]} 35. Kf2 {[%clk 0:00:37]}  g4 {[%clk 0:01:04]} 36. Bf4 {[%clk 0:00:31]}  Bh4+ {[%clk 0:00:58]} 37. Kf1 {[%clk 0:00:24]}  Re4 {[%clk 0:00:54]} 38. e3 {[%clk 0:00:24]}  a5 {[%clk 0:00:41]} 39. Rd6 {[%clk 0:00:22]}  a4 {[%clk 0:00:38]} 40. bxa4 {[%clk 0:00:09]}  Bf6 {[%clk 0:00:34]} 41. Bh6+ {[%clk 0:00:03]}  Kxh6 {[%clk 0:00:33]} 42. Rxf6+ {[%clk 0:00:04]}  Kg5 {[%clk 0:00:34]} 43. Rxb6 {[%clk 0:00:02]}  Rxc4 {[%clk 0:00:33]} 44. a5 {[%clk 0:00:02]}  Ra4 {[%clk 0:00:32]} 45. a6 {[%clk 0:00:02]}  Rxa3 {[%clk 0:00:31]} 46. f6 {[%clk 0:00:02]}  c4 {[%clk 0:00:31]} 47. Ke2 {[%clk 0:00:02]}  Ra2+ {[%clk 0:00:31]} 48. Kd1 {[%clk 0:00:02]}  g3 {[%clk 0:00:31]} 49. Rc6 {[%clk 0:00:01]}  g2 {[%clk 0:00:31]} 50. Rc5+ {[%clk 0:00:02]}  Kg6 {[%clk 0:00:31]} 0-1


[Site "https://www.chess.com"]

[Event "Titled Tuesday Blitz July 20 2021"]
[White "Samsonkin, Artiom"]
[Black "Sjugirov, Sanan"]
[WhiteFideId "13503111"]
[BlackFideId "4189302"]
[WhiteElo "2513"]
[BlackElo "2472"]
[Result "0-1"]
[Round "04"]
[TimeControl "180+1"]
[Date "2021.07.20"]
[WhiteClock "0:00:01"]
[BlackClock "0:00:19"]

1. e4 {[%clk 0:03:00]}  c6 {[%clk 0:02:59]} 2. d4 {[%clk 0:03:00]}  d5 {[%clk 0:02:59]} 3. e5 {[%clk 0:03:00]}  c5 {[%clk 0:02:59]} 4. dxc5 {[%clk 0:02:58]}  e6 {[%clk 0:02:58]} 5. a3 {[%clk 0:02:57]}  Bxc5 {[%clk 0:02:56]} 6. Bd3 {[%clk 0:02:57]}  Ne7 {[%clk 0:02:55]} 7. Nf3 {[%clk 0:02:57]}  Ng6 {[%clk 0:02:51]} 8. O-O {[%clk 0:02:56]}  Nc6 {[%clk 0:02:50]} 9. b4 {[%clk 0:02:41]}  Bb6 {[%clk 0:02:50]} 10. Bb2 {[%clk 0:02:42]}  Nf4 {[%clk 0:02:45]} 11. c4 {[%clk 0:02:36]}  Nxd3 {[%clk 0:02:36]} 12. Qxd3 {[%clk 0:02:35]}  dxc4 {[%clk 0:02:35]} 13. Qxc4 {[%clk 0:02:36]}  Bd7 {[%clk 0:02:27]} 14. Nbd2 {[%clk 0:02:31]}  O-O {[%clk 0:02:25]} 15. Ne4 {[%clk 0:02:25]}  Ne7 {[%clk 0:02:25]} 16. Rad1 {[%clk 0:02:17]}  Rc8 {[%clk 0:02:08]} 17. Qe2 {[%clk 0:01:41]}  Qc7 {[%clk 0:01:40]} 18. Nfg5 {[%clk 0:01:29]}  h6 {[%clk 0:01:18]} 19. Qh5 {[%clk 0:01:17]}  Be8 {[%clk 0:00:41]} 20. Nf6+ {[%clk 0:00:52]}  gxf6 {[%clk 0:00:35]} 21. exf6 {[%clk 0:00:40]}  Nf5 {[%clk 0:00:36]} 22. Rd3 {[%clk 0:00:25]}  Qf4 {[%clk 0:00:34]} 23. Rg3 {[%clk 0:00:24]}  Kh8 {[%clk 0:00:33]} 24. Rg4 {[%clk 0:00:21]}  Qd2 {[%clk 0:00:29]} 25. Ne4 {[%clk 0:00:02]}  Qxb2 {[%clk 0:00:24]} 26. Rf4 {[%clk 0:00:01]}  Rc1 {[%clk 0:00:19]} 0-1


[Site "https://www.chess.com"]

[Event "Titled Tuesday Blitz July 20 2021"]
[White "Sargsyan, Anna M."]
[Black "Pein, Jonathan"]
[WhiteFideId "13308130"]
[BlackFideId "417092"]
[WhiteElo "2263"]
[BlackElo "2167"]
[Result "1-0"]
[Round "04"]
[TimeControl "180+1"]
[Date "2021.07.21"]
[WhiteClock "0:01:44"]
[BlackClock "0:00:10"]

1. d4 {[%clk 0:03:00]}  Nf6 {[%clk 0:02:25]} 2. c4 {[%clk 0:03:00]}  g6 {[%clk 0:02:25]} 3. g3 {[%clk 0:03:00]}  Bg7 {[%clk 0:02:25]} 4. Bg2 {[%clk 0:02:59]}  O-O {[%clk 0:02:26]} 5. Nc3 {[%clk 0:02:59]}  c6 {[%clk 0:02:27]} 6. Nf3 {[%clk 0:02:58]}  d6 {[%clk 0:02:28]} 7. O-O {[%clk 0:02:57]}  Qa5 {[%clk 0:02:28]} 8. h3 {[%clk 0:02:57]}  Nbd7 {[%clk 0:02:26]} 9. e4 {[%clk 0:02:56]}  e5 {[%clk 0:02:26]} 10. Re1 {[%clk 0:02:55]}  exd4 {[%clk 0:02:24]} 11. Nxd4 {[%clk 0:02:56]}  Ne5 {[%clk 0:02:25]} 12. Qe2 {[%clk 0:02:55]}  Re8 {[%clk 0:02:19]} 13. Be3 {[%clk 0:02:49]}  Qb4 {[%clk 0:02:16]} 14. Bf1 {[%clk 0:02:44]}  d5 {[%clk 0:02:09]} 15. cxd5 {[%clk 0:02:36]}  cxd5 {[%clk 0:02:08]} 16. Nc2 {[%clk 0:02:35]}  Qxb2 {[%clk 0:01:44]} 17. Na4 {[%clk 0:02:34]}  Nf3+ {[%clk 0:01:44]} 18. Kh1 {[%clk 0:02:21]}  Qe5 {[%clk 0:01:11]} 19. Qxf3 {[%clk 0:02:18]}  dxe4 {[%clk 0:01:05]} 20. Qe2 {[%clk 0:02:13]}  Qa5 {[%clk 0:00:57]} 21. Nb2 {[%clk 0:02:01]}  Nd5 {[%clk 0:00:56]} 22. Bd4 {[%clk 0:02:00]}  Nc3 {[%clk 0:00:55]} 23. Qd2 {[%clk 0:01:55]}  Bf5 {[%clk 0:00:35]} 24. Nc4 {[%clk 0:01:53]}  Qd5 {[%clk 0:00:33]} 25. N4e3 {[%clk 0:01:49]}  Qc6 {[%clk 0:00:29]} 26. Bxg7 {[%clk 0:01:47]}  Kxg7 {[%clk 0:00:28]} 27. Nd4 {[%clk 0:01:48]}  Rad8 {[%clk 0:00:14]} 28. Nexf5+ {[%clk 0:01:43]}  gxf5 {[%clk 0:00:13]} 29. Qg5+ {[%clk 0:01:44]}  Kh8 {[%clk 0:00:10]} 30. Nxc6 {[%clk 0:01:44]} 1-0


[Site "https://www.chess.com"]

[Event "Titled Tuesday Blitz July 20 2021"]
[White "Siniauski, Artsiom"]
[Black "Fisabilillah, Ummi"]
[WhiteFideId "13512269"]
[BlackFideId "7104804"]
[WhiteElo "2210"]
[BlackElo "2091"]
[Result "1-0"]
[Round "04"]
[TimeControl "180+1"]
[Date "2021.07.21"]
[WhiteClock "0:01:12"]
[BlackClock "0:00:28"]

1. e4 {[%clk 0:02:56]}  e6 {[%clk 0:02:56]} 2. d4 {[%clk 0:02:55]}  d5 {[%clk 0:02:56]} 3. Nc3 {[%clk 0:02:56]}  Bb4 {[%clk 0:02:54]} 4. e5 {[%clk 0:02:55]}  b6 {[%clk 0:02:54]} 5. Qg4 {[%clk 0:02:49]}  Bf8 {[%clk 0:02:53]} 6. Rb1 {[%clk 0:02:25]}  Qd7 {[%clk 0:02:51]} 7. f4 {[%clk 0:02:18]}  Ne7 {[%clk 0:02:48]} 8. Bb5 {[%clk 0:02:13]}  c6 {[%clk 0:02:47]} 9. Bd3 {[%clk 0:02:14]}  Ba6 {[%clk 0:02:45]} 10. Nge2 {[%clk 0:02:07]}  c5 {[%clk 0:02:43]} 11. Bxa6 {[%clk 0:02:05]}  Nxa6 {[%clk 0:02:44]} 12. O-O {[%clk 0:02:05]}  Nf5 {[%clk 0:02:39]} 13. Qf3 {[%clk 0:02:00]}  cxd4 {[%clk 0:02:30]} 14. Nd1 {[%clk 0:02:00]}  h5 {[%clk 0:02:28]} 15. Nf2 {[%clk 0:01:59]}  Nb4 {[%clk 0:02:17]} 16. Qb3 {[%clk 0:01:50]}  Rc8 {[%clk 0:02:02]} 17. Bd2 {[%clk 0:01:46]}  Nc6 {[%clk 0:01:23]} 18. Nd3 {[%clk 0:01:40]}  Bc5 {[%clk 0:01:19]} 19. a4 {[%clk 0:01:39]}  Nce7 {[%clk 0:01:05]} 20. a5 {[%clk 0:01:35]}  Ne3 {[%clk 0:00:58]} 21. Bxe3 {[%clk 0:01:32]}  dxe3 {[%clk 0:00:58]} 22. Nxc5 {[%clk 0:01:32]}  Rxc5 {[%clk 0:00:41]} 23. axb6 {[%clk 0:01:32]}  axb6 {[%clk 0:00:41]} 24. Qxb6 {[%clk 0:01:24]}  Rxc2 {[%clk 0:00:40]} 25. Qxe3 {[%clk 0:01:22]}  Nf5 {[%clk 0:00:37]} 26. Qd3 {[%clk 0:01:17]}  Rc8 {[%clk 0:00:28]} 27. b4 {[%clk 0:01:12]} 1-0


[Site "https://www.chess.com"]

[Event "Titled Tuesday Blitz July 20 2021"]
[White "Stearman, Josiah"]
[Black "Indjic, Aleksandar"]
[WhiteFideId "2062496"]
[BlackFideId "911925"]
[WhiteElo "2402"]
[BlackElo "2643"]
[Result "0-1"]
[Round "04"]
[TimeControl "180+1"]
[Date "2021.07.20"]
[WhiteClock "0:01:20"]
[BlackClock "0:01:28"]

1. e4 {[%clk 0:03:00]}  c5 {[%clk 0:02:58]} 2. Nc3 {[%clk 0:03:00]}  a6 {[%clk 0:02:57]} 3. g3 {[%clk 0:03:01]}  h6 {[%clk 0:02:56]} 4. Bg2 {[%clk 0:03:02]}  e6 {[%clk 0:02:54]} 5. d3 {[%clk 0:03:03]}  Nc6 {[%clk 0:02:52]} 6. f3 {[%clk 0:03:03]}  d5 {[%clk 0:02:44]} 7. Nge2 {[%clk 0:03:03]}  d4 {[%clk 0:02:44]} 8. Nb1 {[%clk 0:03:03]}  h5 {[%clk 0:02:44]} 9. h4 {[%clk 0:02:57]}  Nf6 {[%clk 0:02:44]} 10. O-O {[%clk 0:02:57]}  e5 {[%clk 0:02:43]} 11. Bg5 {[%clk 0:02:57]}  Be7 {[%clk 0:02:43]} 12. Nd2 {[%clk 0:02:57]}  Be6 {[%clk 0:02:36]} 13. a4 {[%clk 0:02:57]}  Qc7 {[%clk 0:02:35]} 14. Nc4 {[%clk 0:02:50]}  O-O-O {[%clk 0:02:34]} 15. b3 {[%clk 0:02:47]}  Kb8 {[%clk 0:02:34]} 16. Qd2 {[%clk 0:02:42]}  g6 {[%clk 0:02:14]} 17. a5 {[%clk 0:02:38]}  Ka7 {[%clk 0:02:12]} 18. Nb6 {[%clk 0:02:20]}  Rhe8 {[%clk 0:02:10]} 19. Kh1 {[%clk 0:02:13]}  Nb4 {[%clk 0:02:06]} 20. Nc4 {[%clk 0:02:07]}  Nd7 {[%clk 0:02:04]} 21. f4 {[%clk 0:02:04]}  f6 {[%clk 0:02:03]} 22. f5 {[%clk 0:01:52]}  Bxc4 {[%clk 0:02:00]} 23. bxc4 {[%clk 0:01:44]}  fxg5 {[%clk 0:02:00]} 24. fxg6 {[%clk 0:01:45]}  gxh4 {[%clk 0:01:59]} 25. Rf7 {[%clk 0:01:43]}  Qd6 {[%clk 0:01:54]} 26. Qh6 {[%clk 0:01:42]}  Rg8 {[%clk 0:01:46]} 27. Qxh5 {[%clk 0:01:38]}  Nc6 {[%clk 0:01:44]} 28. g7 {[%clk 0:01:35]}  Bf6 {[%clk 0:01:35]} 29. Qg6 {[%clk 0:01:26]}  Ne7 {[%clk 0:01:30]} 30. Qh6 {[%clk 0:01:20]}  Qe6 {[%clk 0:01:28]} 0-1


[Site "https://www.chess.com"]